[Event "XVIII Orsha IM 2020"]
[Site "Orsha"]
[Date "2020.01.19"]
[Round "2.1"]
[White "Gogolev, Artem"]
[Black "Tsaruk, Maksim"]
[Result "1/2-1/2"]
[ECO "D20"]
[WhiteElo "2328"]
[BlackElo "2316"]
[Annotator "ChessBase"]
[PlyCount "183"]
[EventDate "2020.01.18"]
[EventType "tourn"]
[EventCountry "BLR"]
[SourceTitle "playchess.com"]
[Source "ChessBase"]
[SourceQuality "1"]
[TimeControl "5400+30"]

1. d4 {[%emt 0:16:05]} d5 {[%emt 0:00:00]} 2. c4 {[%emt 0:00:19]} dxc4 {[%emt 0:00:00]} 3. e3 {[%emt 0:00:20]} e5 {[%emt 0:00:27]} 4. Bxc4 {[%emt 0:00:14]} exd4 {[%emt 0:00:06]} 5. exd4 {[%emt 0:00:04]} Nf6 {[%emt 0:00:56]} 6. Nc3 {[%emt 0:00:49]} Bd6 {[%emt 0:02:08]} 7. Qe2+ {[%emt 0:00:28]} Qe7 {[%emt 0:02:28]} 8. Qxe7+ {[%emt 0:01:05]} Kxe7 {[%emt 0:00:26]} 9. Nf3 {[%emt 0:00:41]} Be6 {[%emt 0:21:10]} 10. Bxe6 {[%emt 0:00:10]} fxe6 {[%emt 0:00:07]} 11. O-O {[%emt 0:00:18]} Nc6 {[%emt 0:07:40]} 12. Re1 {[%emt 0:03:58]} Nb4 {[%emt 0:08:08]} 13. Re2 {[%emt 0:01:40]} Rae8 {[%emt 0:00:06]} 14. Bg5 {[%emt 0:05:21]} Kd7 {[%emt 0:00:17]} 15. Rd1 {[%emt 0:10:52]} Nfd5 {[%emt 0:19:19]} 16. a3 {[%emt 0:03:27]} Nc6 {[%emt 0:04:45]} 17. Ne5+ {[%emt 0:11:54]} Bxe5 {[%emt 0:01:16]} 18. dxe5 {[%emt 0:00:09]} h6 {[%emt 0:00:02]} 19. Bh4 {[%emt 0:02:47]} g5 {[%emt 0:00:04]} 20. Bg3 {[%emt 0:00:03]} Nce7 {[%emt 0:00:04]} 21. Ne4 {[%emt 0:00:09]} b6 {[%emt 0:06:15]} 22. Nf6+ {[%emt 0:02:13]} Kc8 {[%emt 0:00:10]} 23. Nxe8 {[%emt 0:00:07]} Rxe8 {[%emt 0:00:06]} 24. b4 {[%emt 0:07:33]} Nc3 {[%emt 0:00:12]} 25. Red2 {[%emt 0:00:14]} Nxd1 {[%emt 0:12:44]} 26. Rxd1 {[%emt 0:00:05]} Nf5 {[%emt 0:04:00]} 27. f3 {[%emt 0:02:14]} Rd8 {[%emt 0:04:30]} 28. Rxd8+ {[%emt 0:00:24]} Kxd8 {[%emt 0:00:03]} 29. Bf2 {[%emt 0:00:52]} Kd7 {[%emt 0:00:07]} 30. g4 {[%emt 0:01:42]} Ne7 {[%emt 0:00:17]} 31. h4 {[%emt 0:02:04]} Nc6 {[%emt 0:05:56]} 32. hxg5 hxg5 {[%emt 0:00:01]} 33. Bg3 {[%emt 0:08:11]} Nd4 {[%emt 0:00:04]} 34. Kf2 {[%emt 0:01:40]} Ke7 {[%emt 0:00:06]} 35. f4 {[%emt 0:03:27]} Kf7 {[%emt 0:01:26]} 36. a4 {[%emt 0:03:34]} a6 {[%emt 0:00:27]} 37. Ke3 {[%emt 0:05:31]} Nc2+ {[%emt 0:01:13]} 38. Ke4 {[%emt 0:01:40]} gxf4 {[%emt 0:00:05]} 39. Bxf4 {[%emt 0:00:08]} Nxb4 {[%emt 0:00:04]} 40. Bd2 {[%emt 0:00:20]} Nc6 {[%emt 0:00:53]} 41. Bg5 {[%emt 0:00:26]} Kg6 {[%emt 0:00:58]} 42. Bd2 {[%emt 0:00:15]} Nb8 {[%emt 0:01:17]} 43. Kd4 {[%emt 0:02:53]} Nd7 {[%emt 0:00:19]} 44. a5 {[%emt 0:00:48]} Nb8 {[%emt 0:00:45]} 45. axb6 {[%emt 0:00:36]} cxb6 {[%emt 0:00:04]} 46. Bf4 {[%emt 0:00:25]} Nc6+ {[%emt 0:00:12]} 47. Kc4 {[%emt 0:00:05]} Kg7 {[%emt 0:00:33]} 48. Bg3 {[%emt 0:00:59]} Kh6 {[%emt 0:00:02]} 49. Bf4+ {[%emt 0:00:25]} Kg6 {[%emt 0:00:01]} 50. Kd3 {[%emt 0:00:56]} b5 {[%emt 0:00:16]} 51. Kc3 {[%emt 0:00:09]} a5 {[%emt 0:00:24]} 52. Kb3 {[%emt 0:01:04]} Nd4+ {[%emt 0:02:15]} 53. Ka3 {[%emt 0:00:05]} Nc6 {[%emt 0:00:31]} 54. Kb3 {[%emt 0:00:39]} a4+ {[%emt 0:00:04]} 55. Ka3 {[%emt 0:00:18]} Ne7 {[%emt 0:00:07]} 56. Bc1 {[%emt 0:00:20]} Nd5 {[%emt 0:01:15]} 57. Bd2 {[%emt 0:00:08]} Kf7 {[%emt 0:00:10]} 58. Bc1 {[%emt 0:00:39]} Ke7 {[%emt 0:00:23]} 59. Bd2 {[%emt 0:00:46]} Kd7 {[%emt 0:00:25]} 60. Bh6 {[%emt 0:01:35]} Kc6 {[%emt 0:01:12]} 61. g5 {[%emt 0:00:22]} Kd7 {[%emt 0:00:36]} 62. Bf8 {[%emt 0:00:12]} Ke8 {[%emt 0:00:09]} 63. Bg7 {[%emt 0:00:41]} Kf7 {[%emt 0:00:02]} 64. Bf6 {[%emt 0:00:07]} Kg6 {[%emt 0:00:18]} 65. Bd8 {[%emt 0:00:04]} Kg7 {[%emt 0:00:17]} 66. Bf6+ {[%emt 0:00:05]} Kf7 {[%emt 0:00:04]} 67. Bd8 {[%emt 0:00:04]} Kg6 {[%emt 0:00:04]} 68. Bf6 {[%emt 0:00:03]} Kf5 {[%emt 0:02:32]} 69. Bd8 {[%emt 0:00:07]} Ne3 {[%emt 0:00:35]} 70. Kb4 {[%emt 0:00:43]} Nc4 {[%emt 0:00:14]} 71. Be7 {[%emt 0:00:41]} a3 {[%emt 0:00:37]} 72. Kb3 {[%emt 0:00:05]} Nxe5 {[%emt 0:00:04]} 73. Bxa3 {[%emt 0:00:38]} Nc6 {[%emt 0:00:13]} 74. Bc1 {[%emt 0:00:10]} e5 {[%emt 0:00:02]} 75. Kc3 {[%emt 0:00:14]} Ke6 {[%emt 0:01:48]} 76. Bd2 {[%emt 0:00:43]} Kf5 {[%emt 0:00:28]} 77. Bc1 {[%emt 0:00:15]} e4 {[%emt 0:00:26]} 78. Kb3 {[%emt 0:00:30]} Ke5 {[%emt 0:00:33]} 79. Bb2+ {[%emt 0:00:46]} Ke6 {[%emt 0:00:07]} 80. g6 {[%emt 0:01:21]} e3 {[%emt 0:00:04]} 81. Kc2 {[%emt 0:00:15]} Nb4+ {[%emt 0:00:12]} 82. Kd1 {[%emt 0:00:20]} Nd5 {[%emt 0:00:37]} 83. g7 {[%emt 0:00:19]} Kf7 {[%emt 0:00:01]} 84. Bd4 {[%emt 0:00:51]} b4 {[%emt 0:00:05]} 85. Ke2 {[%emt 0:01:37]} b3 {[%emt 0:00:16]} 86. Be5 {[%emt 0:00:43]} Kg8 {[%emt 0:00:40]} 87. Bb2 {[%emt 0:00:44]} Kh7 {[%emt 0:00:17]} 88. Kd3 {[%emt 0:00:37]} Nb6 {[%emt 0:00:11]} 89. Kxe3 {[%emt 0:00:11]} Nc4+ {[%emt 0:00:02]} 90. Kd3 {[%emt 0:00:05]} Nxb2+ {[%emt 0:00:01]} 91. Kc3 {[%emt 0:00:07]} Kxg7 {[%emt 0:00:02]} 92. Kxb2 {[%emt 0:00:08]} 1/2-1/2

[Event "XVIII Orsha IM 2020"]
[Site "Orsha"]
[Date "2020.01.19"]
[Round "2.2"]
[White "Markelova, Lubov"]
[Black "Goltseva, Ekaterina"]
[Result "1/2-1/2"]
[ECO "D32"]
[WhiteElo "2200"]
[BlackElo "2304"]
[Annotator "ChessBase"]
[PlyCount "56"]
[EventDate "2020.01.18"]
[EventType "tourn"]
[EventCountry "BLR"]
[SourceTitle "playchess.com"]
[Source "ChessBase"]
[SourceQuality "1"]
[TimeControl "5400+30"]

1. Nf3 {[%emt 0:00:00]} Nf6 {[%emt 0:00:00]} 2. c4 {[%emt 0:00:00]} e6 {[%emt 0:00:27]} 3. Nc3 {[%emt 0:00:52]} d5 {[%emt 0:00:31]} 4. e3 {[%emt 0:00:33]} c5 {[%emt 0:00:40]} 5. d4 {[%emt 0:00:08]} Nc6 {[%emt 0:00:33]} 6. cxd5 {[%emt 0:00:15]} exd5 {[%emt 0:00:24]} 7. Bb5 {[%emt 0:00:23]} cxd4 {[%emt 0:01:16]} 8. Nxd4 {[%emt 0:00:21]} Bd7 {[%emt 0:00:33]} 9. O-O {[%emt 0:01:28]} Bd6 {[%emt 0:00:43]} 10. Nf3 {[%emt 0:00:19]} a6 {[%emt 0:01:30]} 11. Bxc6 {[%emt 0:02:07]} Bxc6 {[%emt 0:06:18]} 12. b3 {[%emt 0:00:41]} O-O {[%emt 0:06:21]} 13. Bb2 {[%emt 0:00:06]} Qe7 {[%emt 0:04:30]} 14. Qd4 {[%emt 0:07:05]} Bc5 {[%emt 0:04:41]} 15. Qe5 {[%emt 0:04:16]} Qe6 {[%emt 0:12:07]} 16. Rfd1 {[%emt 0:06:45]} Ng4 {[%emt 0:08:33]} 17. Qxe6 {[%emt 0:23:30]} fxe6 {[%emt 0:00:07]} 18. h3 {[%emt 0:00:40]} Nf6 {[%emt 0:01:53]} 19. Ne5 {[%emt 0:01:47]} Rac8 {[%emt 0:06:08]} 20. Rac1 {[%emt 0:01:48]} Nd7 {[%emt 0:09:45]} 21. Ne2 {[%emt 0:05:48]} Bb5 {[%emt 0:06:06]} 22. Nf4 {[%emt 0:17:41]} Bd6 {[%emt 0:04:14]} 23. Nxd7 {[%emt 0:03:54]} Bxd7 {[%emt 0:00:32]} 24. Nd3 {[%emt 0:00:12]} Bb5 {[%emt 0:06:13]} 25. Ne5 {[%emt 0:07:33]} Rfd8 {[%emt 0:02:52]} 26. a4 {[%emt 0:01:49]} Be8 {[%emt 0:01:10]} 27. Bd4 {[%emt 0:03:49]} Bxe5 {[%emt 0:06:37]} 28. Bxe5 {[%emt 0:00:07]} Rc6 {[%emt 0:00:44]} 1/2-1/2

[Event "XVIII Orsha IM 2020"]
[Site "Orsha"]
[Date "2020.01.19"]
[Round "2.3"]
[White "Runets, Ivan"]
[Black "Makoveev, Ilya"]
[Result "1/2-1/2"]
[ECO "A38"]
[WhiteElo "2304"]
[BlackElo "2277"]
[Annotator "ChessBase"]
[PlyCount "113"]
[EventDate "2020.01.18"]
[EventType "tourn"]
[EventCountry "BLR"]
[SourceTitle "playchess.com"]
[Source "ChessBase"]
[SourceQuality "1"]
[TimeControl "5400+30"]

1. Nf3 {[%emt 0:00:00]} Nf6 {[%emt 0:00:00]} 2. c4 {[%emt 0:00:00]} c5 {[%emt 0:00:00]} 3. b3 {[%emt 0:00:29]} g6 {[%emt 0:02:09]} 4. Bb2 {[%emt 0:00:10]} Bg7 {[%emt 0:00:05]} 5. g3 {[%emt 0:00:47]} Nc6 {[%emt 0:00:22]} 6. Bg2 {[%emt 0:00:24]} d6 {[%emt 0:00:06]} 7. O-O {[%emt 0:00:50]} Bd7 {[%emt 0:00:29]} 8. Nc3 {[%emt 0:02:32]} O-O {[%emt 0:00:38]} 9. d3 {[%emt 0:00:45]} Rb8 {[%emt 0:00:51]} 10. Qd2 {[%emt 0:03:30]} Ne8 {[%emt 0:07:49]} 11. e3 {[%emt 0:05:18]} Nc7 {[%emt 0:05:51]} 12. d4 {[%emt 0:02:51]} Bg4 {[%emt 0:06:01]} 13. d5 {[%emt 0:02:41]} Bxf3 {[%emt 0:01:47]} 14. Bxf3 {[%emt 0:00:07]} Ne5 {[%emt 0:00:07]} 15. Be2 {[%emt 0:01:04]} Nd7 {[%emt 0:07:03]} 16. h4 {[%emt 0:03:51]} f5 {[%emt 0:06:13]} 17. Kg2 {[%emt 0:04:56]} Nf6 {[%emt 0:00:50]} 18. Rad1 {[%emt 0:00:30]} Qd7 {[%emt 0:01:50]} 19. Rh1 {[%emt 0:05:44]} Ne4 {[%emt 0:13:40]} 20. Qc2 {[%emt 0:01:55]} Nxc3 {[%emt 0:04:51]} 21. Bxc3 {[%emt 0:00:11]} Bxc3 {[%emt 0:00:32]} 22. Qxc3 {[%emt 0:00:02]} h5 {[%emt 0:02:15]} 23. Bd3 {[%emt 0:04:05]} Rf6 {[%emt 0:02:13]} 24. Rhe1 {[%emt 0:05:44]} Rbf8 {[%emt 0:01:50]} 25. f4 {[%emt 0:01:10]} e6 {[%emt 0:02:36]} 26. dxe6 {[%emt 0:04:34]} Rxe6 {[%emt 0:00:45]} 27. e4 {[%emt 0:06:28]} Qc6 {[%emt 0:01:29]} 28. Kh2 {[%emt 0:05:39]} fxe4 {[%emt 0:02:36]} 29. Bf1 {[%emt 0:00:09]} Re7 {[%emt 0:05:08]} 30. Qd2 {[%emt 0:04:43]} Ne6 {[%emt 0:07:49]} 31. Qxd6 {[%emt 0:01:51]} Qxd6 {[%emt 0:00:10]} 32. Rxd6 {[%emt 0:00:01]} Nd4 {[%emt 0:00:06]} 33. Kg2 {[%emt 0:02:13]} Kg7 {[%emt 0:01:02]} 34. Rd5 {[%emt 0:01:54]} Rf5 {[%emt 0:02:04]} 35. Rxf5 {[%emt 0:05:27]} gxf5 {[%emt 0:00:11]} 36. Be2 {[%emt 0:01:08]} Nxe2 {[%emt 0:02:02]} 37. Rxe2 {[%emt 0:00:02]} Rd7 {[%emt 0:00:07]} 38. Kf2 {[%emt 0:01:19]} Kf6 {[%emt 0:00:15]} 39. Rb2 {[%emt 0:00:49]} Rd3 {[%emt 0:01:14]} 40. b4 {[%emt 0:04:01]} cxb4 {[%emt 0:02:02]} 41. Rxb4 {[%emt 0:00:07]} b6 {[%emt 0:00:49]} 42. Ra4 {[%emt 0:00:47]} Rd7 {[%emt 0:02:14]} 43. Ra6 {[%emt 0:01:03]} Rc7 {[%emt 0:00:55]} 44. a4 {[%emt 0:01:16]} Ke6 {[%emt 0:04:21]} 45. a5 {[%emt 0:01:08]} Rxc4 {[%emt 0:00:37]} 46. axb6 {[%emt 0:00:07]} axb6 {[%emt 0:00:03]} 47. Rxb6+ {[%emt 0:00:05]} Kd5 {[%emt 0:00:49]} 48. Rf6 {[%emt 0:01:31]} Rc2+ {[%emt 0:01:02]} 49. Ke3 {[%emt 0:01:01]} Rc3+ {[%emt 0:00:08]} 50. Ke2 {[%emt 0:01:17]} Rxg3 {[%emt 0:01:21]} 51. Rxf5+ {[%emt 0:00:06]} Kd4 {[%emt 0:00:04]} 52. Rxh5 {[%emt 0:04:42]} Rg2+ {[%emt 0:00:05]} 53. Kf1 {[%emt 0:00:02]} Ra2 {[%emt 0:01:48]} 54. Rb5 {[%emt 0:02:32]} Ke3 {[%emt 0:01:12]} 55. Rb3+ {[%emt 0:00:15]} Kxf4 {[%emt 0:00:57]} 56. Ke1 {[%emt 0:00:22]} Rh2 {[%emt 0:00:22]} 57. Rb5 {[%emt 0:12:15]} 1/2-1/2

[Event "XVIII Orsha IM 2020"]
[Site "Orsha"]
[Date "2020.01.19"]
[Round "2.4"]
[White "Alekseev, Vadim"]
[Black "Kononenko, Dmitry"]
[Result "1/2-1/2"]
[ECO "D76"]
[WhiteElo "2354"]
[BlackElo "2613"]
[Annotator "ChessBase"]
[PlyCount "53"]
[EventDate "2020.01.18"]
[EventType "tourn"]
[EventCountry "BLR"]
[SourceTitle "playchess.com"]
[Source "ChessBase"]
[SourceQuality "1"]
[TimeControl "5400+30"]

1. d4 {[%emt 0:01:44]} Nf6 {[%emt 0:00:00]} 2. c4 {[%emt 0:00:07]} g6 {[%emt 0:00:40]} 3. Nf3 {[%emt 0:00:31]} Bg7 {[%emt 0:00:13]} 4. g3 {[%emt 0:00:09]} O-O {[%emt 0:00:12]} 5. Bg2 {[%emt 0:00:06]} d5 {[%emt 0:00:30]} 6. cxd5 {[%emt 0:01:01]} Nxd5 {[%emt 0:00:06]} 7. O-O {[%emt 0:00:15]} Nc6 {[%emt 0:00:49]} 8. Nc3 {[%emt 0:00:13]} Nb6 {[%emt 0:00:20]} 9. e3 {[%emt 0:00:10]} Re8 {[%emt 0:00:20]} 10. Re1 {[%emt 0:02:17]} e5 {[%emt 0:01:06]} 11. d5 {[%emt 0:01:47]} Na5 {[%emt 0:01:14]} 12. e4 {[%emt 0:00:18]} c6 {[%emt 0:00:10]} 13. b3 {[%emt 0:01:24]} cxd5 {[%emt 0:03:04]} 14. exd5 {[%emt 0:00:18]} Bg4 {[%emt 0:08:16]} 15. Ba3 {[%emt 0:01:53]} f5 {[%emt 0:04:30]} 16. Bb4 {[%emt 0:15:19]} e4 {[%emt 0:02:30]} 17. Bxa5 {[%emt 0:16:16]} Qd6 {[%emt 0:02:26]} 18. h3 {[%emt 0:17:56]} Bxf3 {[%emt 0:44:12]} 19. Bxf3 {[%emt 0:00:06]} exf3 {[%emt 0:06:39]} 20. Re6 {[%emt 0:12:32]} Rxe6 {[%emt 0:08:38]} 21. dxe6 {[%emt 0:00:25]} Qc6 {[%emt 0:10:45]} 22. Rc1 {[%emt 0:07:49]} Rc8 {[%emt 0:00:35]} 23. Bxb6 {[%emt 0:05:43]} axb6 {[%emt 0:00:34]} 24. e7 {[%emt 0:00:42]} Bxc3 {[%emt 0:02:43]} 25. Qd8+ {[%emt 0:05:48]} Kg7 {[%emt 0:00:50]} 26. Rxc3 {[%emt 0:03:18]} Qxc3 {[%emt 0:00:15]} 27. e8=Q {[%emt 0:00:45]} 1/2-1/2

[Event "XVIII Orsha IM 2020"]
[Site "Orsha"]
[Date "2020.01.19"]
[Round "3.1"]
[White "Novitzkij, Dmitrij"]
[Black "Gogolev, Artem"]
[Result "1/2-1/2"]
[ECO "C47"]
[WhiteElo "2329"]
[BlackElo "2328"]
[Annotator "ChessBase"]
[PlyCount "23"]
[EventDate "2020.01.18"]
[EventType "tourn"]
[EventCountry "BLR"]
[SourceTitle "playchess.com"]
[Source "ChessBase"]
[SourceQuality "1"]
[TimeControl "5400+30"]

1. e4 {[%emt 0:00:00]} e5 {[%emt 0:01:06]} 2. Nf3 {[%emt 0:00:00]} Nc6 {[%emt 0:00:04]} 3. d4 {[%emt 0:00:03]} exd4 {[%emt 0:00:06]} 4. Nxd4 {[%emt 0:00:01]} Nf6 {[%emt 0:00:09]} 5. Nc3 {[%emt 0:00:26]} Bb4 {[%emt 0:00:13]} 6. Nxc6 {[%emt 0:00:04]} bxc6 {[%emt 0:00:03]} 7. Bd3 {[%emt 0:00:04]} O-O {[%emt 0:00:26]} 8. O-O {[%emt 0:00:03]} Re8 {[%emt 0:02:18]} 9. Qf3 {[%emt 0:03:04]} Bd6 {[%emt 0:08:26]} 10. Bf4 {[%emt 0:02:47]} Bxf4 {[%emt 0:00:14]} 11. Qxf4 {[%emt 0:00:04]} d6 {[%emt 0:00:20]} 12. Rfe1 {[%emt 0:00:05]} 1/2-1/2

[Event "XVIII Orsha IM 2020"]
[Site "Orsha"]
[Date "2020.01.19"]
[Round "3.2"]
[White "Kononenko, Dmitry"]
[Black "Shkalov, Oleg"]
[Result "1-0"]
[ECO "A30"]
[WhiteElo "2613"]
[BlackElo "2151"]
[Annotator "ChessBase"]
[PlyCount "123"]
[EventDate "2020.01.18"]
[EventType "tourn"]
[EventCountry "BLR"]
[SourceTitle "playchess.com"]
[Source "ChessBase"]
[SourceQuality "1"]
[TimeControl "5400+30"]

1. Nf3 {[%emt 0:00:00]} c5 {[%emt 0:05:52]} 2. c4 {[%emt 0:00:00]} Nf6 {[%emt 0:00:18]} 3. Nc3 {[%emt 0:00:00]} g6 {[%emt 0:00:33]} 4. g3 {[%emt 0:00:01]} b6 {[%emt 0:00:07]} 5. Bg2 {[%emt 0:00:30]} Bb7 {[%emt 0:00:02]} 6. O-O {[%emt 0:00:18]} Bg7 {[%emt 0:00:13]} 7. Re1 {[%emt 0:00:33]} d6 {[%emt 0:00:02]} 8. e4 {[%emt 0:01:22]} e5 {[%emt 0:02:28]} 9. d3 {[%emt 0:04:44]} Nc6 {[%emt 0:00:40]} 10. Nd5 {[%emt 0:01:52]} Nd4 {[%emt 0:02:31]} 11. Nxd4 {[%emt 0:01:28]} cxd4 {[%emt 0:00:11]} 12. Bg5 {[%emt 0:02:33]} h6 {[%emt 0:06:18]} 13. Qa4+ {[%emt 0:02:31]} Kf8 {[%emt 0:00:06]} 14. Bd2 {[%emt 0:01:03]} Kg8 {[%emt 0:20:06]} 15. Bh3 {[%emt 0:03:40]} Kh7 {[%emt 0:01:51]} 16. Qb4 {[%emt 0:05:30]} Qb8 {[%emt 0:06:35]} 17. a4 {[%emt 0:01:50]} Bc8 {[%emt 0:04:55]} 18. Bxc8 {[%emt 0:01:11]} Rxc8 {[%emt 0:03:29]} 19. a5 {[%emt 0:02:07]} Nxd5 {[%emt 0:01:30]} 20. exd5 {[%emt 0:09:04]} Qc7 {[%emt 0:02:55]} 21. axb6 {[%emt 0:01:53]} axb6 {[%emt 0:03:31]} 22. Ra4 {[%emt 0:00:53]} Qd7 {[%emt 0:07:33]} 23. Rxa8 {[%emt 0:04:34]} Rxa8 {[%emt 0:00:07]} 24. Qxb6 {[%emt 0:00:17]} Qf5 {[%emt 0:00:08]} 25. Qb3 {[%emt 0:03:05]} Qf3 {[%emt 0:01:24]} 26. Qc2 {[%emt 0:01:26]} h5 {[%emt 0:07:08]} 27. h4 {[%emt 0:01:18]} f5 {[%emt 0:05:46]} 28. Bg5 {[%emt 0:02:36]} Bh6 {[%emt 0:03:53]} 29. Qd1 {[%emt 0:03:03]} Qxd1 {[%emt 0:04:57]} 30. Rxd1 {[%emt 0:01:48]} Bxg5 {[%emt 0:00:17]} 31. hxg5 {[%emt 0:00:05]} Rb8 {[%emt 0:00:19]} 32. Rd2 {[%emt 0:01:42]} e4 {[%emt 0:03:27]} 33. dxe4 {[%emt 0:02:03]} fxe4 {[%emt 0:00:02]} 34. Rxd4 {[%emt 0:00:35]} e3 {[%emt 0:01:29]} 35. fxe3 {[%emt 0:00:34]} Rxb2 {[%emt 0:00:04]} 36. Re4 {[%emt 0:00:37]} Rc2 {[%emt 0:00:47]} 37. Kf1 {[%emt 0:01:29]} Kg7 {[%emt 0:00:20]} 38. Re7+ {[%emt 0:01:02]} Kf8 {[%emt 0:00:06]} 39. Re6 {[%emt 0:01:12]} Rxc4 {[%emt 0:00:35]} 40. Rxd6 {[%emt 0:00:43]} Rg4 {[%emt 0:02:53]} 41. Rxg6 {[%emt 0:02:55]} Rxg3 {[%emt 0:00:06]} 42. Ke2 {[%emt 0:01:55]} Kf7 {[%emt 0:00:47]} 43. Rf6+ {[%emt 0:00:58]} Kg7 {[%emt 0:00:05]} 44. Rf3 {[%emt 0:00:54]} Rxg5 {[%emt 0:00:59]} 45. e4 {[%emt 0:00:03]} h4 {[%emt 0:02:36]} 46. Ke3 {[%emt 0:00:14]} Rh5 {[%emt 0:00:21]} 47. d6 {[%emt 0:01:12]} h3 {[%emt 0:00:35]} 48. d7 {[%emt 0:03:08]} Rh8 {[%emt 0:00:30]} 49. e5 {[%emt 0:01:35]} h2 {[%emt 0:01:12]} 50. Rf1 {[%emt 0:00:04]} Rf8 {[%emt 0:01:50]} 51. Rxf8 {[%emt 0:02:06]} h1=Q {[%emt 0:00:09]} 52. d8=Q {[%emt 0:00:12]} Qe1+ {[%emt 0:00:29]} 53. Kd4 {[%emt 0:00:28]} Qb4+ {[%emt 0:00:44]} 54. Kd5 {[%emt 0:00:12]} Qb3+ {[%emt 0:00:32]} 55. Kd6 {[%emt 0:00:09]} Qb4+ {[%emt 0:00:16]} 56. Ke6 {[%emt 0:00:15]} Qg4+ {[%emt 0:00:49]} 57. Rf5 {[%emt 0:00:53]} Qc4+ {[%emt 0:00:08]} 58. Qd5 {[%emt 0:00:58]} Qa6+ {[%emt 0:00:02]} 59. Qd6 {[%emt 0:00:19]} Qa2+ {[%emt 0:01:21]} 60. Ke7 {[%emt 0:00:13]} Qa7+ {[%emt 0:00:14]} 61. Qd7 {[%emt 0:00:11]} Qb8 {[%emt 0:00:46]} 62. Rf7+ {[%emt 0:30:54] Qb5} 1-0

[Event "XVIII Orsha IM 2020"]
[Site "Orsha"]
[Date "2020.01.19"]
[Round "3.3"]
[White "Makoveev, Ilya"]
[Black "Alekseev, Vadim"]
[Result "1-0"]
[ECO "C16"]
[WhiteElo "2277"]
[BlackElo "2354"]
[Annotator "ChessBase"]
[PlyCount "111"]
[EventDate "2020.01.18"]
[EventType "tourn"]
[EventCountry "BLR"]
[SourceTitle "playchess.com"]
[Source "ChessBase"]
[SourceQuality "1"]
[TimeControl "5400+30"]

1. e4 {[%emt 0:00:00]} e6 {[%emt 0:00:00]} 2. d4 {[%emt 0:00:00]} d5 {[%emt 0:00:00]} 3. Nc3 {[%emt 0:00:00]} Bb4 {[%emt 0:00:00]} 4. e5 {[%emt 0:00:15]} Qd7 {[%emt 0:00:57]} 5. Qg4 {[%emt 0:00:55]} Bf8 {[%emt 0:00:45]} 6. Be3 {[%emt 0:05:28]} b6 {[%emt 0:01:01]} 7. O-O-O {[%emt 0:02:52]} Ba6 {[%emt 0:02:03]} 8. Bxa6 {[%emt 0:02:00]} Nxa6 {[%emt 0:00:02]} 9. f4 {[%emt 0:03:00]} Ne7 {[%emt 0:02:08]} 10. Nge2 {[%emt 0:14:42]} O-O-O {[%emt 0:04:13]} 11. Qf3 {[%emt 0:03:09]} h5 {[%emt 0:02:14]} 12. g3 {[%emt 0:00:59]} Kb8 {[%emt 0:06:00]} 13. h3 {[%emt 0:01:04]} Rc8 {[%emt 0:03:49]} 14. g4 {[%emt 0:02:44]} g6 {[%emt 0:02:39]} 15. Rhf1 {[%emt 0:06:34]} c6 {[%emt 0:06:28]} 16. Kb1 {[%emt 0:03:19]} Nc7 {[%emt 0:01:12]} 17. Bf2 {[%emt 0:06:30]} Nb5 {[%emt 0:03:38]} 18. Rd3 {[%emt 0:17:48]} Nxc3+ {[%emt 0:01:33]} 19. Rxc3 {[%emt 0:01:20]} Bg7 {[%emt 0:02:53]} 20. Ng3 {[%emt 0:07:32]} h4 {[%emt 0:05:21]} 21. Ne2 {[%emt 0:00:09]} Rcf8 {[%emt 0:00:15]} 22. Ng1 {[%emt 0:01:53]} f6 {[%emt 0:01:30]} 23. exf6 {[%emt 0:01:51]} Rxf6 {[%emt 0:00:31]} 24. Qe2 {[%emt 0:03:35]} Kb7 {[%emt 0:01:14]} 25. Be3 {[%emt 0:02:27]} g5 {[%emt 0:05:53]} 26. Nf3 {[%emt 0:02:12]} gxf4 {[%emt 0:00:53]} 27. Ne5 {[%emt 0:00:07]} Qe8 {[%emt 0:00:18]} 28. Bxf4 {[%emt 0:03:50]} Rhf8 {[%emt 0:11:18]} 29. Rcf3 {[%emt 0:00:06]} Ng6 {[%emt 0:07:45]} 30. Bh2 {[%emt 0:00:06]} Rxf3 {[%emt 0:01:48]} 31. Rxf3 {[%emt 0:00:03]} Bxe5 {[%emt 0:02:43]} 32. Bxe5 {[%emt 0:00:13]} c5 {[%emt 0:03:25]} 33. b3 {[%emt 0:02:42]} cxd4 {[%emt 0:01:43]} 34. Bxd4 {[%emt 0:00:08]} e5 {[%emt 0:02:50]} 35. Be3 {[%emt 0:01:49]} e4 {[%emt 0:02:35]} 36. Rxf8 {[%emt 0:02:21]} Qxf8 {[%emt 0:01:19]} 37. Qb5 {[%emt 0:00:29]} Qf7 {[%emt 0:03:54]} 38. a4 {[%emt 0:00:09]} Ne5 {[%emt 0:03:07]} 39. a5 {[%emt 0:00:17]} Qe6 {[%emt 0:01:09]} 40. a6+ {[%emt 0:02:50]} Kc8 {[%emt 0:00:05]} 41. Qb4 {[%emt 0:00:47]} Qf6 {[%emt 0:02:04]} 42. Qc3+ {[%emt 0:00:06]} Kd7 {[%emt 0:00:08]} 43. Bxb6 {[%emt 0:01:16]} Qf1+ {[%emt 0:05:53]} 44. Kb2 {[%emt 0:00:00]} Nc6 {[%emt 0:00:21]} 45. Qg7+ {[%emt 0:00:40]} Ke6 {[%emt 0:00:12]} 46. Qb7 {[%emt 0:01:23]} Qf6+ {[%emt 0:00:53]} 47. c3 {[%emt 0:00:06]} Nb4 {[%emt 0:01:06]} 48. Qc8+ {[%emt 0:00:58]} Kf7 {[%emt 0:00:11]} 49. Qd7+ {[%emt 0:00:47]} Kg8 {[%emt 0:00:15]} 50. Qe8+ {[%emt 0:00:13]} Kh7 {[%emt 0:00:17]} 51. Qd7+ {[%emt 0:01:09]} Kg8 {[%emt 0:00:23]} 52. Qc8+ {[%emt 0:00:35]} Kf7 {[%emt 0:00:12]} 53. Qb7+ {[%emt 0:00:30]} Kg6 {[%emt 0:00:10]} 54. Bd4 {[%emt 0:00:09]} Nd3+ {[%emt 0:01:43]} 55. Kc2 {[%emt 0:00:24]} Ne5 {[%emt 0:00:41]} 56. Qxd5 {[%emt 0:00:20]} 1-0